bitfinex/quotes_BTCUSD_20251212
["timestamp","ask_amount","ask_price","bid_price","bid_amount"]
[1765499520059,0.24725193,92371.0,92370.0,0.00031675]
[1765499520752,0.23013193,92371.0,92370.0,0.00031675]
[1765499520942,0.24725193,92371.0,92370.0,0.00031675]
[1765499521134,0.24725193,92371.0,92370.0,0.00129699]
[1765499522187,0.23013193,92371.0,92370.0,0.00129699]
[1765499522397,0.23725104,92371.0,92370.0,0.00129699]
[1765499522608,0.22013104,92371.0,92370.0,0.04209699]
[1765499523041,0.22013104,92371.0,92370.0,0.01724699]
[1765499523789,0.22013104,92371.0,92370.0,0.04209699]
[1765499523982,0.22013104,92371.0,92370.0,0.01724699]
[1765499524323,0.22013104,92371.0,92370.0,0.00129699]
[1765499524917,0.21851817,92371.0,92370.0,0.00129699]
[1765499528964,0.21851817,92371.0,92370.0,0.04209699]
[1765499529742,0.21851817,92371.0,92370.0,0.00129699]
[1765499531896,0.21851817,92371.0,92370.0,0.01724699]
[1765499532108,0.002,92371.0,92370.0,0.04209699]
[1765499532322,0.002,92371.0,92370.0,0.07038982]
[1765499532526,0.002,92371.0,92370.0,0.04209699]
[1765499532721,0.002,92371.0,92370.0,0.2586175]
[1765499533136,0.22013104,92371.0,92370.0,0.00129699]
[1765499533495,0.22013104,92371.0,92370.0,0.02614699]
[1765499533496,0.21851817,92371.0,92370.0,0.02614699]
[1765499533699,0.21851817,92371.0,92370.0,0.04209699]
[1765499534306,0.22851906,92371.0,92370.0,0.00129699]
[1765499534511,0.23013193,92371.0,92370.0,0.00129699]
[1765499535643,0.22913193,92371.0,92370.0,0.00129699]
[1765499535845,0.32466183,92371.0,92370.0,0.00129699]
[1765499536284,0.32366183,92371.0,92370.0,0.00129699]
[1765499536430,0.32566183,92371.0,92370.0,0.00129699]
[1765499536834,0.23013193,92371.0,92370.0,0.00129699]
[1765499537039,0.23113193,92371.0,92370.0,0.00129699]
[1765499537235,0.24825193,92371.0,92370.0,0.00129699]
[1765499538270,0.23113193,92371.0,92370.0,0.00129699]
[1765499538474,0.22113104,92371.0,92370.0,0.00129699]
[1765499538881,0.26563504,92371.0,92370.0,0.00129699]
[1765499539838,0.36561285,92371.0,92370.0,0.00129699]
[1765499540042,0.22113104,92371.0,92370.0,0.00129699]
[1765499540379,0.26563504,92371.0,92370.0,0.00129699]
[1765499542390,0.31565343,92371.0,92370.0,0.00129699]
[1765499543245,0.31365343,92371.0,92370.0,0.00129699]
[1765499543426,0.31265343,92371.0,92370.0,0.00129699]
[1765499543602,0.31865343,92371.0,92370.0,0.00129699]
[1765499543803,0.44116105,92371.0,92370.0,0.00129699]
[1765499545085,0.29775504,92371.0,92370.0,0.00129699]
[1765499545289,0.31396907,92371.0,92370.0,0.00129699]
[1765499545530,0.29775504,92371.0,92370.0,0.00129699]
[1765499548473,0.28063504,92371.0,92370.0,0.00129699]
[1765499548676,0.23613104,92371.0,92370.0,0.00129699]
[1765499548879,0.25325104,92371.0,92370.0,0.00129699]
[1765499549055,0.23613104,92371.0,92370.0,0.00129699]
[1765499551230,0.28063504,92371.0,92370.0,0.00129699]
[1765499551665,0.23613104,92371.0,92370.0,0.00129699]
[1765499552251,0.23451817,92371.0,92370.0,0.04094699]
[1765499552791,0.23451817,92371.0,92370.0,0.01675699]
[1765499553212,0.23451817,92371.0,92370.0,0.00129699]
[1765499555599,0.27902217,92371.0,92370.0,0.00129699]
[1765499556072,0.28063504,92371.0,92370.0,0.00129699]
[1765499557594,0.29775504,92371.0,92370.0,0.00129699]
[1765499558205,0.28063504,92371.0,92370.0,0.00129699]
[1765499558409,0.29775504,92371.0,92370.0,0.00129699]
[1765499558616,0.25325104,92371.0,92370.0,0.00129699]
[1765499564430,0.29775504,92371.0,92370.0,0.00129699]
[1765499565053,0.34777343,92371.0,92370.0,0.00129699]
[1765499565257,0.28063504,92371.0,92370.0,0.00129699]
[1765499565468,0.29775504,92371.0,92370.0,0.00129699]
[1765499565871,0.28063504,92371.0,92370.0,0.00129699]
[1765499566359,0.29775504,92371.0,92370.0,0.00129699]
[1765499566563,0.28063504,92371.0,92370.0,0.00129699]
[1765499566767,0.25325104,92371.0,92370.0,0.00129699]
[1765499567353,0.23613104,92371.0,92370.0,0.00129699]
[1765499567553,0.25325104,92371.0,92370.0,0.00129699]
[1765499569441,0.23613104,92371.0,92370.0,0.04052699]
[1765499569664,0.23613104,92371.0,92370.0,0.01785699]
[1765499569881,0.23613104,92371.0,92370.0,0.00129699]
[1765499570885,0.33073945,92371.0,92370.0,0.00129699]
[1765499571100,0.37524345,92371.0,92370.0,0.00129699]
[1765499571268,0.33073945,92371.0,92370.0,0.00129699]
[1765499571465,0.37524345,92371.0,92370.0,0.00129699]
[1765499572346,0.24613193,92371.0,92370.0,0.00129699]
[1765499577733,0.23613104,92371.0,92370.0,0.00129699]
[1765499578037,0.28063504,92371.0,92370.0,0.00129699]
[1765499581797,0.23451817,92371.0,92370.0,0.01709699]
[1765499581998,0.23451817,92371.0,92370.0,0.04133699]
[1765499582352,0.23451817,92371.0,92370.0,0.01709699]
[1765499582559,0.32896529,92371.0,92370.0,0.00129699]
[1765499582758,0.24451906,92371.0,92370.0,0.00129699]
[1765499583055,0.22851817,92371.0,92370.0,0.00129699]
[1765499583484,0.24863817,92371.0,92370.0,0.00129699]
[1765499583691,0.23663817,92371.0,92370.0,0.00129699]
[1765499584026,0.23963817,92371.0,92370.0,0.00229699]
[1765499584224,0.23663817,92371.0,92370.0,0.00229699]
[1765499584448,0.23663817,92371.0,92370.0,0.00129699]
[1765499584864,0.34158618,92371.0,92370.0,0.00229699]
[1765499585262,0.63228618,92371.0,92370.0,0.00229699]
[1765499585468,0.63389905,92371.0,92370.0,0.00229699]
[1765499585828,0.68391744,92371.0,92370.0,0.00229699]
[1765499586740,0.59097032,92371.0,92370.0,0.00229699]
[1765499587575,0.54095193,92371.0,92370.0,0.00229699]
[1765499587942,0.52383193,92371.0,92370.0,0.00229699]
[1765499588432,0.54095193,92371.0,92370.0,0.00229699]
[1765499589210,0.52383193,92371.0,92370.0,0.00229699]
[1765499589408,0.54095193,92371.0,92370.0,0.00229699]
[1765499590432,0.52383193,92371.0,92370.0,0.00229699]
[1765499590633,0.54095193,92371.0,92370.0,0.00229699]
[1765499591627,0.52383193,92371.0,92370.0,0.00229699]
[1765499591850,0.54095193,92371.0,92370.0,0.00229699]
[1765499592048,0.65145955,92371.0,92370.0,0.00229699]
[1765499593254,0.67569955,92371.0,92370.0,0.00229699]
[1765499593970,0.65857955,92371.0,92370.0,0.00229699]
[1765499594286,0.67569955,92371.0,92370.0,0.00229699]
[1765499595784,0.54095193,92371.0,92370.0,0.00229699]
[1765499596715,0.57346303,92371.0,92370.0,0.00229699]
[1765499596912,0.62348142,92371.0,92370.0,0.00229699]
[1765499600881,0.57346303,92371.0,92370.0,0.00229699]
[1765499602312,0.22313104,92371.0,92370.0,0.02634699]
[1765499602885,0.22151817,92371.0,92370.0,0.04145699]
[1765499611489,0.22151817,92371.0,92370.0,0.01740699]
[1765499611688,0.22151817,92371.0,92370.0,0.00229699]
[1765499616611,0.005,92371.0,92370.0,0.05390699]
[1765499616922,0.005,92371.0,92370.0,0.31357556]
[1765499617130,0.005,92371.0,92370.0,0.37091599]
[1765499617329,0.005,92371.0,92370.0,0.32776793]
[1765499617534,0.003,92371.0,92370.0,0.32676793]
[1765499617941,0.004,92371.0,92370.0,0.32776793]
[1765499618167,0.001,92371.0,92370.0,0.32776793]
[1765499618492,0.01082485,92380.0,92378.0,0.21650097]
[1765499618686,0.22732303,92380.0,92379.0,0.03132403]
[1765499618889,0.22732303,92380.0,92379.0,0.05609472]
[1765499619827,0.22932303,92380.0,92379.0,0.05709472]
[1765499620935,0.22932303,92380.0,92379.0,0.03304472]
[1765499621135,0.22932192,92380.0,92379.0,0.05709472]
[1765499621355,0.23032192,92380.0,92379.0,0.05809472]
[1765499621555,0.01382485,92380.0,92379.0,0.05809472]
[1765499621751,0.003,92380.0,92379.0,0.05809472]
[1765499623003,0.21949707,92380.0,92379.0,0.05809472]
[1765499623181,0.003,92380.0,92379.0,0.05809472]
[1765499623598,0.21949707,92380.0,92379.0,0.05809472]
[1765499624043,0.21949707,92380.0,92379.0,0.03404472]
[1765499624249,0.21949707,92380.0,92379.0,0.05809472]
[1765499628285,0.003,92380.0,92379.0,0.05809472]
[1765499628909,0.21949707,92380.0,92379.0,0.05809472]
[1765499629120,0.003,92380.0,92379.0,0.05809472]
[1765499629803,0.00275214,92380.0,92379.0,0.13318528]
[1765499631278,0.21924921,92380.0,92379.0,0.13318528]
[1765499631486,0.00275214,92380.0,92379.0,0.13318528]
[1765499631636,0.00275214,92380.0,92379.0,0.3496847]
[1765499631841,0.00275214,92380.0,92379.0,0.27459414]
[1765499632615,0.00275214,92380.0,92379.0,0.05809472]
[1765499632819,0.21924921,92380.0,92379.0,0.05809472]
[1765499633099,0.00275214,92380.0,92379.0,0.05809472]
[1765499633304,0.21924921,92380.0,92379.0,0.05809472]
[1765499634648,0.21924921,92380.0,92379.0,0.00272069]
[1765499634800,0.00275214,92380.0,92379.0,0.04201069]
[1765499635338,0.00275214,92380.0,92379.0,0.25851011]
[1765499637952,0.00275214,92380.0,92379.0,0.30165817]
[1765499638348,0.00275214,92380.0,92379.0,0.41135742]
[1765499638553,0.00175214,92380.0,92379.0,0.70105742]
[1765499638801,0.22725161,92409.0,92405.0,0.01082192]
[1765499639001,0.22725161,92409.0,92408.0,0.04360403]
[1765499639329,0.22725161,92409.0,92408.0,0.06727403]
[1765499639535,0.2164273,92410.0,92408.0,0.06727403]
[1765499639833,0.22724116,92413.0,92409.0,0.03929]
[1765499640037,0.22723925,92414.0,92412.0,0.01562]
[1765499640273,0.22723925,92414.0,92413.0,0.01562]
[1765499640686,0.01082087,92414.0,92413.0,0.03929]
[1765499640878,0.22723829,92414.0,92413.0,0.03929]
[1765499641140,0.01082063,92416.0,92413.0,0.03929]
[1765499641354,0.00011636,92416.0,92415.0,0.23203496]
[1765499641561,0.00011636,92416.0,92415.0,0.01562]
[1765499641820,0.00011636,92416.0,92415.0,0.03929]
[1765499642381,0.00511636,92416.0,92415.0,0.25670508]
[1765499642803,0.00311636,92416.0,92415.0,0.25670508]
[1765499643218,0.00511636,92416.0,92415.0,0.25770508]
[1765499644252,0.22314197,92416.0,92415.0,0.002]
[1765499644447,0.25026286,92416.0,92415.0,0.002]
[1765499645598,0.30028125,92416.0,92415.0,0.002]
[1765499646361,0.21645724,92397.0,92395.0,0.01621403]
[1765499646584,0.21807011,92397.0,92395.0,0.01621403]
[1765499647169,0.21807011,92397.0,92387.0,0.01177]
[1765499647635,0.21807011,92397.0,92382.0,0.01177]
[1765499647636,0.01082403,92387.0,92382.0,0.01177]
[1765499647908,0.22730981,92385.0,92383.0,0.02367]
[1765499648110,0.01082415,92386.0,92383.0,0.07429922]
[1765499648348,0.227308,92386.0,92383.0,0.24015995]
[1765499648475,0.227308,92386.0,92385.0,0.01562]
[1765499648681,0.01082333,92393.0,92385.0,0.01562]
[1765499648682,0.01082262,92399.0,92392.0,0.01082344]
[1765499648886,0.21647845,92388.0,92386.0,0.03544]
[1765499649280,0.21647845,92388.0,92387.0,0.03929]
[1765499650140,0.21747845,92388.0,92387.0,0.03929]
[1765499650656,0.21647845,92388.0,92387.0,0.03929]
[1765499650946,0.21747845,92388.0,92387.0,0.03929]
[1765499651494,0.28893378,92388.0,92387.0,0.001]
[1765499651664,0.21847845,92388.0,92387.0,0.001]
[1765499651981,0.26298245,92388.0,92387.0,0.001]
[1765499652777,0.26100342,92379.0,92373.0,0.01177]
[1765499653371,0.21649942,92379.0,92373.0,0.02259567]
[1765499653566,0.21649942,92379.0,92373.0,0.01177]
[1765499653753,0.21649942,92379.0,92378.0,0.01673296]
[1765499654205,0.21749942,92379.0,92378.0,0.01673296]
[1765499655335,0.21849942,92379.0,92378.0,0.01873296]
[1765499658397,0.30746234,92379.0,92378.0,0.01873296]
[1765499658595,0.35196634,92379.0,92378.0,0.00251893]
[1765499659097,0.30746234,92379.0,92378.0,0.00251893]
[1765499659276,0.35096634,92379.0,92378.0,0.00251893]
[1765499659450,0.21649942,92379.0,92378.0,0.00051893]
[1765499659650,0.21749942,92379.0,92378.0,0.00051893]
[1765499660165,0.21649942,92379.0,92378.0,0.00051893]
[1765499660387,0.21749942,92379.0,92378.0,0.00051893]
[1765499660785,0.21849942,92379.0,92378.0,0.00151893]
[1765499661199,0.21749942,92379.0,92378.0,0.00051893]
[1765499661396,0.21849942,92379.0,92378.0,0.00151893]
[1765499661723,0.21849942,92379.0,92378.0,0.03994893]
[1765499661724,0.21749942,92379.0,92378.0,0.03994893]
[1765499661878,0.21849942,92379.0,92378.0,0.01743893]
[1765499662394,0.21849942,92379.0,92378.0,0.03994893]
[1765499664832,0.21849942,92379.0,92378.0,0.00151893]
[1765499665037,0.28012342,92379.0,92378.0,0.00151893]
[1765499667628,0.26300342,92379.0,92378.0,0.00151893]
[1765499667870,0.28012342,92379.0,92378.0,0.00151893]
[1765499671544,0.31302181,92379.0,92378.0,0.00151893]
[1765499671762,0.33014181,92379.0,92378.0,0.00151893]
[1765499671963,0.28012342,92379.0,92378.0,0.00151893]
[1765499672377,0.27912342,92379.0,92378.0,0.00051893]
[1765499672818,0.27812342,92379.0,92378.0,0.00051893]
[1765499673026,0.28412342,92379.0,92378.0,0.00051893]
[1765499673740,0.29712342,92379.0,92378.0,0.00051893]
[1765499674474,0.73584413,92379.0,92378.0,1e-08]
[1765499676871,0.75835413,92379.0,92378.0,1e-08]
[1765499683104,0.74123413,92379.0,92378.0,1e-08]
[1765499683320,0.75835413,92379.0,92378.0,1e-08]
[1765499684983,0.64323181,92379.0,92378.0,1e-08]
[1765499685187,0.66035181,92379.0,92378.0,1e-08]
[1765499686065,0.64323181,92379.0,92378.0,1e-08]
[1765499686431,0.66035181,92379.0,92378.0,1e-08]
[1765499688833,0.64323181,92379.0,92378.0,1e-08]
[1765499689037,0.66035181,92379.0,92378.0,1e-08]
[1765499689238,0.77085943,92379.0,92378.0,1e-08]
[1765499689919,0.61033342,92379.0,92378.0,1e-08]
[1765499690546,0.58782342,92379.0,92378.0,1e-08]
[1765499694570,0.63784181,92379.0,92378.0,1e-08]
[1765499695954,0.65405584,92379.0,92378.0,1e-08]
[1765499697298,0.67727267,92379.0,92378.0,1e-08]
[1765499697441,0.78778029,92379.0,92378.0,1e-08]
[1765499697646,0.67727267,92379.0,92378.0,1e-08]
[1765499697846,0.61013428,92379.0,92378.0,1e-08]
[1765499698042,0.61104025,92379.0,92378.0,1e-08]
[1765499698884,0.66105864,92379.0,92378.0,1e-08]
[1765499699307,0.67727267,92379.0,92378.0,1e-08]
[1765499699717,0.78778029,92379.0,92378.0,1e-08]
[1765499700529,0.79786272,92379.0,92378.0,1e-08]
[1765499701112,0.01082919,92343.0,92339.0,0.05831897]
[1765499701316,0.21659555,92338.0,92337.0,0.06971572]
[1765499701516,0.22742039,92340.0,92337.0,0.06099972]
[1765499701517,0.01082954,92340.0,92337.0,0.06099972]
[1765499701819,0.22742039,92340.0,92339.0,0.01644]
[1765499702019,0.22742039,92340.0,92339.0,0.04101]
[1765499702226,0.22742039,92340.0,92339.0,0.04301]
[1765499702423,0.22742039,92340.0,92339.0,0.05526348]
[1765499702844,0.22842039,92340.0,92339.0,0.05526348]
[1765499703058,0.22842039,92340.0,92339.0,0.04301]
[1765499703387,0.22742039,92340.0,92339.0,0.04301]
[1765499703684,0.22742039,92340.0,92339.0,0.04101]
[1765499703685,0.22842039,92340.0,92339.0,0.04101]
[1765499704012,0.22942039,92340.0,92339.0,0.04101]
[1765499705430,0.22942039,92340.0,92339.0,0.11216233]
[1765499706094,0.22942039,92340.0,92339.0,0.05371665]
[1765499706738,0.22942039,92340.0,92338.0,0.05844568]
[1765499707073,0.21472802,92338.0,92337.0,0.01139675]
[1765499707470,0.21472802,92338.0,92337.0,0.02901939]
[1765499707612,0.21472802,92338.0,92337.0,0.05358939]
[1765499708642,0.21572802,92338.0,92337.0,0.05358939]
[1765499708855,0.21572802,92338.0,92337.0,0.06858043]
[1765499710241,0.002,92338.0,92337.0,0.06858043]
[1765499710594,0.002,92338.0,92337.0,0.05358939]
[1765499710595,0.21859555,92338.0,92337.0,0.05358939]
[1765499710795,0.21859555,92338.0,92337.0,0.11199941]
[1765499711378,0.002,92338.0,92337.0,0.11199941]
[1765499711694,0.002,92338.0,92337.0,0.05358939]
[1765499711998,0.002,92338.0,92337.0,0.0916067]
[1765499712203,0.002,92338.0,92337.0,0.05358939]
[1765499713488,0.002,92338.0,92337.0,0.09673745]
[1765499714183,0.002,92338.0,92337.0,0.05358939]
[1765499714595,0.002,92338.0,92337.0,0.05108939]
[1765499716370,0.002,92338.0,92337.0,0.28934706]
[1765499716571,0.01082801,92353.0,92348.0,0.0108286]
[1765499716805,0.01082801,92353.0,92352.0,0.04465403]
[1765499717120,0.01082801,92353.0,92352.0,0.06786403]
[1765499717687,0.01182801,92353.0,92352.0,0.06786403]
[1765499717883,0.01282801,92353.0,92352.0,0.06786403]
[1765499718653,0.01282801,92353.0,92352.0,0.08773871]
[1765499719055,0.01182801,92353.0,92352.0,0.08773871]
[1765499719284,0.01182801,92353.0,92352.0,0.06886403]
[1765499719398,0.01282801,92353.0,92352.0,0.06886403]
[1765499722020,0.01282801,92353.0,92352.0,0.06961388]
[1765499723013,0.01282801,92353.0,92352.0,0.05339985]
[1765499725562,0.002,92353.0,92352.0,0.05339985]
[1765499725807,0.002,92353.0,92352.0,0.09512291]
[1765499727316,0.002,92353.0,92352.0,0.11677918]
[1765499727769,0.002,92353.0,92352.0,0.15992724]
[1765499730571,0.002,92353.0,92352.0,0.13827097]
[1765499731668,0.002,92353.0,92352.0,0.35483368]
[1765499734797,0.002,92353.0,92352.0,0.09512291]
[1765499735639,0.002,92353.0,92352.0,0.05339985]
[1765499738411,0.002,92353.0,92352.0,0.09654791]
[1765499739224,0.002,92353.0,92352.0,0.05339985]
[1765499739375,0.002,92353.0,92352.0,0.07341283]
[1765499740610,0.002,92353.0,92352.0,0.09654791]
[1765499740850,0.002,92353.0,92352.0,0.16640853]
[1765499744617,0.002,92353.0,92352.0,0.1880648]
[1765499750151,0.002,92353.0,92352.0,0.4787648]
[1765499750324,0.002,92353.0,92352.0,0.45710853]
[1765499750952,0.001,92353.0,92352.0,0.45610853]
[1765499751351,0.01082543,92375.0,92370.0,0.01082602]
[1765499751592,0.01082543,92375.0,92374.0,0.01621403]
[1765499751796,0.01082543,92375.0,92374.0,0.06770403]
[1765499752641,0.01082543,92375.0,92374.0,0.06782078]
[1765499752975,0.01082543,92375.0,92374.0,0.06882078]
[1765499753159,0.01182543,92375.0,92374.0,0.06882078]
[1765499758771,0.01182543,92375.0,92374.0,0.1244439]
[1765499759341,0.01182543,92375.0,92374.0,0.06882078]
[1765499763181,0.001,92375.0,92374.0,0.06882078]
[1765499763391,0.001,92375.0,92374.0,0.28533191]
[1765499763605,0.001,92375.0,92374.0,0.30245191]
[1765499764230,0.01082508,92378.0,92375.0,0.01082543]
[1765499764428,0.01082497,92379.0,92378.0,0.01649]
[1765499764865,0.01082497,92379.0,92378.0,0.03928]
[1765499765431,0.01082473,92381.0,92378.0,0.03928]
[1765499765680,0.01082473,92381.0,92380.0,0.0287]
[1765499766019,0.01082473,92381.0,92380.0,0.05149]
[1765499766222,0.01082473,92381.0,92380.0,0.15834795]
[1765499766425,0.01082473,92381.0,92380.0,0.11519989]
[1765499766849,0.01082473,92381.0,92380.0,0.05149]
[1765499768049,0.01182473,92381.0,92380.0,0.05249]
[1765499768493,0.01182473,92381.0,92380.0,0.0297]
[1765499768711,0.01182473,92381.0,92380.0,0.001]
[1765499769148,0.0134376,92381.0,92380.0,0.001]
[1765499769355,0.08634283,92381.0,92380.0,0.001]
[1765499769562,0.15938761,92381.0,92380.0,0.001]
[1765499770301,0.08648238,92381.0,92380.0,0.001]
[1765499770511,0.09648238,92381.0,92380.0,0.002]
[1765499770714,0.09548238,92381.0,92380.0,0.001]
[1765499771230,0.06297838,92381.0,92380.0,0.002]
[1765499771414,0.08009838,92381.0,92380.0,0.002]
[1765499771610,0.12460238,92381.0,92380.0,0.002]
[1765499773290,0.55189208,92381.0,92380.0,0.002]
[1765499774059,0.53989208,92381.0,92380.0,0.001]
[1765499774262,0.044504,92375.0,92374.0,0.00011675]
[1765499774933,0.07701391,92375.0,92374.0,0.00011675]
[1765499775540,0.09001391,92375.0,92374.0,0.00111675]
[1765499776677,0.10001391,92375.0,92374.0,0.00111675]
[1765499779358,0.1500323,92375.0,92374.0,0.00111675]
[1765499779535,0.16624633,92375.0,92374.0,0.00111675]
[1765499779733,0.56745395,92375.0,92374.0,0.00111675]
[1765499785000,0.01082567,92373.0,92370.0,0.00023067]
[1765499785206,0.38522239,92371.0,92370.0,0.00023067]
[1765499785636,0.40986239,92371.0,92370.0,0.00023067]
[1765499785837,0.46136298,92371.0,92370.0,0.00023067]
[1765499786866,0.47336298,92371.0,92370.0,0.00023067]
[1765499787271,0.089144,92371.0,92370.0,0.00023067]
[1765499787500,0.106264,92371.0,92370.0,0.00023067]
[1765499789011,0.106264,92371.0,92370.0,0.04051067]
[1765499789012,0.02,92371.0,92370.0,0.04051067]
[1765499789704,0.02,92371.0,92370.0,0.00023067]
[1765499789903,0.008,92371.0,92370.0,0.00023067]
[1765499790108,0.002,92371.0,92370.0,0.00023067]
[1765499790477,0.003,92371.0,92370.0,0.00023067]
[1765499790678,0.001,92371.0,92370.0,0.00023067]
[1765499791972,0.002,92371.0,92370.0,0.00123067]
[1765499794277,0.046504,92371.0,92370.0,0.00123067]
[1765499798149,0.002,92371.0,92370.0,0.00123067]
[1765499799594,0.002,92371.0,92370.0,0.04151067]
[1765499800543,0.002,92371.0,92370.0,0.01687067]
[1765499802131,0.002,92371.0,92370.0,0.04151067]
[1765499806454,0.002,92371.0,92370.0,0.00123067]
[1765499808490,0.046504,92371.0,92370.0,0.00123067]
[1765499812808,0.002,92371.0,92370.0,0.00123067]
[1765499813041,0.046504,92371.0,92370.0,0.00123067]
[1765499819001,0.046504,92371.0,92370.0,0.01776067]
[1765499819202,0.046504,92371.0,92370.0,0.04160067]
[1765499819203,0.002,92371.0,92370.0,0.04160067]
[1765499820245,0.002,92371.0,92370.0,0.00123067]
[1765499822751,0.07485136,92371.0,92370.0,0.00123067]
[1765499823681,0.002,92371.0,92370.0,0.00123067]
[1765499823891,0.046504,92371.0,92370.0,0.00123067]
[1765499828599,0.002,92371.0,92370.0,0.00123067]
[1765499836488,0.01200089,92371.0,92370.0,0.00123067]
[1765499837696,0.01100089,92371.0,92370.0,0.00023067]
[1765499837879,0.01000089,92371.0,92370.0,0.00023067]
[1765499838213,0.01300089,92371.0,92370.0,0.00023067]
[1765499838967,0.08250194,92371.0,92370.0,0.00023067]
[1765499841021,0.01300089,92371.0,92370.0,0.00023067]
[1765499847743,0.01100089,92371.0,92370.0,0.00023067]
[1765499848238,0.03912089,92371.0,92370.0,0.00023067]
[1765499848376,0.04712089,92371.0,92370.0,0.00023067]
[1765499848576,0.03512089,92371.0,92370.0,0.00023067]
[1765499849819,0.04712089,92371.0,92370.0,0.00023067]
[1765499850739,0.12003394,92371.0,92370.0,0.00023067]
[1765499850945,0.04712089,92371.0,92370.0,0.00023067]
[1765499851547,0.03000089,92371.0,92370.0,0.00023067]
[1765499851866,0.04712089,92371.0,92370.0,0.00023067]
[1765499863356,0.06333492,92371.0,92370.0,0.00023067]
[1765499864158,0.08071803,92371.0,92370.0,0.00023067]
[1765499864361,0.17411079,92371.0,92370.0,0.00023067]
[1765499873542,0.08071803,92371.0,92370.0,0.00023067]
[1765499873742,0.09783803,92371.0,92370.0,0.00023067]
[1765499873943,0.08071803,92371.0,92370.0,0.00023067]
[1765499874124,0.09783803,92371.0,92370.0,0.00023067]
[1765499876672,0.081624,92371.0,92370.0,0.00023067]
[1765499880482,0.04712089,92371.0,92370.0,0.00023067]
[1765499880652,0.03712,92371.0,92370.0,0.00023067]
[1765499881275,0.081624,92371.0,92370.0,0.00023067]
[1765499882544,0.064504,92371.0,92370.0,0.00023067]
[1765499882683,0.081624,92371.0,92370.0,0.00023067]
[1765499885330,0.04712089,92371.0,92370.0,0.00023067]
[1765499886417,0.12165534,92371.0,92370.0,0.00023067]
[1765499887253,0.15416613,92371.0,92370.0,0.00023067]
[1765499889314,0.13704613,92371.0,92370.0,0.00023067]
[1765499889507,0.15416613,92371.0,92370.0,0.00023067]
[1765499893455,0.07963168,92371.0,92370.0,0.00023067]
[1765499897349,0.37033168,92371.0,92370.0,0.00023067]
[1765499897974,0.35321168,92371.0,92370.0,0.00023067]
[1765499898180,0.37033168,92371.0,92370.0,0.00023067]
[1765499901923,0.35321168,92371.0,92370.0,0.00023067]
[1765499902136,0.37033168,92371.0,92370.0,0.00023067]
[1765499904844,0.34321079,92371.0,92370.0,0.00023067]
[1765499905036,0.32782,92371.0,92370.0,0.00023067]
[1765499905379,0.02,92371.0,92370.0,0.03866067]
[1765499906365,0.008,92371.0,92370.0,0.03866067]
[1765499906559,0.01,92371.0,92370.0,0.03866067]
[1765499907050,0.002,92371.0,92370.0,0.03866067]
[1765499907266,0.003,92371.0,92370.0,0.03866067]
[1765499907833,0.001,92371.0,92370.0,0.03866067]
[1765499908010,0.001,92371.0,92370.0,0.28618051]
[1765499908208,0.003,92371.0,92370.0,0.28618051]
[1765499908620,0.001,92371.0,92370.0,0.28618051]
[1765499909024,0.002,92371.0,92370.0,0.28718051]
[1765499909591,0.001,92371.0,92370.0,0.28618051]
[1765499909803,0.002,92371.0,92370.0,0.28818051]
[1765499910010,0.001,92371.0,92370.0,0.28818051]
[1765499910392,0.002,92371.0,92370.0,0.29118051]
[1765499914857,0.002,92371.0,92370.0,0.07466]
[1765499915644,0.002,92371.0,92370.0,0.09087403]
[1765499916453,0.002,92371.0,92370.0,0.14056271]
[1765499917717,0.002,92371.0,92370.0,0.10169958]
[1765499917927,0.002,92371.0,92370.0,0.1209676]
[1765499918139,0.002,92371.0,92370.0,0.11014205]
[1765499920454,0.002,92371.0,92370.0,0.12014854]
[1765499923666,0.002,92371.0,92370.0,0.17854022]
[1765499923874,0.002,92371.0,92370.0,0.18092425]
[1765499924080,0.01082215,92403.0,92400.0,0.01082251]
[1765499924281,0.01082227,92402.0,92401.0,0.02303]
[1765499924580,0.00011634,92403.0,92402.0,0.0269]
[1765499924734,0.00011634,92403.0,92402.0,0.04993]
[1765499926785,0.00111634,92403.0,92402.0,0.05093]
[1765499927616,0.00111634,92403.0,92402.0,0.05193]
[1765499931591,0.00111634,92403.0,92402.0,0.0289]
[1765499931791,0.00111634,92403.0,92402.0,0.002]
[1765499932009,0.00272921,92403.0,92402.0,0.002]
[1765499933708,0.05506895,92403.0,92402.0,0.002]
[1765499935297,0.00272921,92403.0,92402.0,0.002]
[1765499936816,0.04723321,92403.0,92402.0,0.002]
[1765499939613,0.00272921,92403.0,92402.0,0.03025]
[1765499939787,0.00272921,92403.0,92402.0,0.05387]
[1765499939966,0.00111634,92403.0,92402.0,0.05387]
[1765499940370,0.00111634,92403.0,92402.0,0.08604996]
[1765499941376,0.00111634,92403.0,92402.0,0.10212996]
[1765499941573,0.00011634,92403.0,92402.0,0.14427802]
[1765499941747,0.00011634,92403.0,92402.0,0.14627802]
[1765499941951,0.00111634,92403.0,92402.0,0.14827802]
[1765499942152,0.00111634,92403.0,92402.0,0.12677451]
[1765499942402,0.00011634,92403.0,92402.0,0.12477451]
[1765499942552,0.00011634,92403.0,92402.0,0.12277451]
[1765499942752,0.00111634,92403.0,92402.0,0.12577451]
[1765499943152,0.00111634,92403.0,92402.0,0.135781]
[1765499944159,0.00211634,92403.0,92402.0,0.139781]
[1765499944357,0.00211634,92403.0,92402.0,0.17292257]
[1765499950018,0.00211634,92403.0,92402.0,0.1853217]
[1765499956111,0.00211634,92403.0,92402.0,0.10344909]
[1765499956316,0.00211634,92403.0,92402.0,0.12052909]
[1765499956948,0.00211634,92403.0,92402.0,0.08834913]
[1765499960601,0.00211634,92403.0,92402.0,0.1100931]
[1765499960809,0.21855952,92403.0,92402.0,0.05887]
[1765499962840,0.21855952,92403.0,92402.0,0.0189]
[1765499963068,0.21855952,92403.0,92402.0,0.007]
[1765499963607,0.21855952,92403.0,92402.0,0.03058]
[1765499964414,0.21855952,92403.0,92402.0,0.06940397]
[1765499964844,0.00211634,92403.0,92402.0,0.12901978]
[1765499965258,0.00211634,92403.0,92402.0,0.09019581]
[1765499967403,0.00211634,92403.0,92402.0,0.04574]
[1765499968944,0.00211634,92403.0,92402.0,0.10395941]
[1765499969333,0.00211634,92403.0,92402.0,0.04574]
[1765499974389,0.00211634,92403.0,92402.0,0.26218553]
[1765499978338,0.00211634,92403.0,92402.0,0.29467393]
[1765499978545,0.00211634,92403.0,92402.0,0.38525802]
[1765499983793,0.00211634,92403.0,92402.0,0.13632409]
[1765499984155,0.00211634,92403.0,92402.0,0.04574]
[1765499984755,0.00372921,92403.0,92402.0,0.007]
[1765499986179,0.00272921,92403.0,92402.0,0.03771]
[1765499986383,0.00272921,92403.0,92402.0,0.04071]